[Event "Early-Titled-Tuesday-Blitz-February-20-2024"]
[Site "Chess.com"]
[Date "2024.02.20"]
[Round "3"]
[White "Fandorine"]
[Black "MyDream003"]
[Result "1-0"]
[WhiteElo "2963"]
[BlackElo "2732"]
[TimeControl "180+1"]
[EndTime "8:28:49 PST"]
[Termination "Fandorine won on time"]

1. d4 {[%clk 0:03:00.9]} 1... g6 {[%clk 0:02:53.5]} 2. e4 {[%clk 0:02:53.3]}
2... Bg7 {[%clk 0:02:53.3]} 3. Nf3 {[%clk 0:02:48.8]} 3... d6 {[%clk 0:02:53.7]}
4. Bc4 {[%clk 0:02:47.2]} 4... e6 {[%clk 0:02:46.1]} 5. O-O {[%clk 0:02:44.4]}
5... Ne7 {[%clk 0:02:46.4]} 6. Re1 {[%clk 0:02:44.8]} 6... O-O {[%clk
0:02:46.1]} 7. a4 {[%clk 0:02:45.4]} 7... a6 {[%clk 0:02:45.6]} 8. a5 {[%clk
0:02:44.8]} 8... b5 {[%clk 0:02:37.9]} 9. axb6 {[%clk 0:02:44.6]} 9... cxb6
{[%clk 0:02:38.8]} 10. Nbd2 {[%clk 0:02:42.6]} 10... Bb7 {[%clk 0:02:39.2]} 11.
c3 {[%clk 0:02:42.1]} 11... Nd7 {[%clk 0:02:35.5]} 12. Bd3 {[%clk 0:02:35.9]}
12... Qc7 {[%clk 0:02:11.3]} 13. h4 {[%clk 0:02:34.7]} 13... Nf6 {[%clk
0:02:06.8]} 14. Nf1 {[%clk 0:02:33.8]} 14... e5 {[%clk 0:02:02]} 15. Ng3 {[%clk
0:02:31.2]} 15... Rfe8 {[%clk 0:01:53.8]} 16. h5 {[%clk 0:02:14.1]} 16... b5
{[%clk 0:01:51.4]} 17. h6 {[%clk 0:02:12.6]} 17... Bh8 {[%clk 0:01:50.6]} 18. d5
{[%clk 0:02:12.2]} 18... Nd7 {[%clk 0:01:49.9]} 19. Be3 {[%clk 0:02:04.2]} 19...
Nc5 {[%clk 0:01:50]} 20. Bc2 {[%clk 0:02:03.5]} 20... Bc8 {[%clk 0:01:39.7]} 21.
Nd2 {[%clk 0:01:56.9]} 21... Bd7 {[%clk 0:01:34.1]} 22. b4 {[%clk 0:01:39.4]}
22... Nb7 {[%clk 0:01:34.2]} 23. Ra3 {[%clk 0:01:27.6]} 23... a5 {[%clk
0:01:26.2]} 24. Qa1 {[%clk 0:01:23.6]} 24... Nc8 {[%clk 0:00:57.8]} 25. Bd3
{[%clk 0:01:10.6]} 25... Ne7 {[%clk 0:00:43.7]} 26. c4 {[%clk 0:01:04]} 26...
Rab8 {[%clk 0:00:30.7]} 27. bxa5 {[%clk 0:00:57.1]} 27... b4 {[%clk 0:00:30.9]}
28. Ra2 {[%clk 0:00:57.4]} 28... Nc5 {[%clk 0:00:30.7]} 29. Bxc5 {[%clk
0:00:57.4]} 29... dxc5 {[%clk 0:00:28.8]} 30. Nb3 {[%clk 0:00:58.1]} 30... Nc8
{[%clk 0:00:28]} 31. a6 {[%clk 0:00:57.9]} 31... Nd6 {[%clk 0:00:17.4]} 32. Ra5
{[%clk 0:00:57.7]} 32... Qa7 {[%clk 0:00:16.5]} 33. Nxc5 {[%clk 0:00:55.5]}
33... b3 {[%clk 0:00:13.3]} 34. Nxd7 {[%clk 0:00:55.6]} 34... Qxd7 {[%clk
0:00:13.4]} 35. c5 {[%clk 0:00:55.7]} 35... b2 {[%clk 0:00:11.3]} 36. Qb1 {[%clk
0:00:54.7]} 36... Nc8 {[%clk 0:00:11.7]} 37. Ra2 {[%clk 0:00:48]} 37... Qa7
{[%clk 0:00:10.7]} 38. Rxb2 {[%clk 0:00:45.9]} 38... Rxb2 {[%clk 0:00:11.6]} 39.
Qxb2 {[%clk 0:00:46.7]} 39... Qxc5 {[%clk 0:00:12]} 40. Qb5 {[%clk 0:00:47.5]}
40... Qe7 {[%clk 0:00:09.6]} 41. Qb7 {[%clk 0:00:45]} 41... Qc5 {[%clk
0:00:06.2]} 42. Qc6 {[%clk 0:00:40.7]} 42... Qe7 {[%clk 0:00:06.5]} 43. Rb1
{[%clk 0:00:34.2]} 43... Nd6 {[%clk 0:00:06]} 44. a7 {[%clk 0:00:34.8]} 44...
Qd8 {[%clk 0:00:02.8]} 45. Rb8 {[%clk 0:00:32.2]} 1-0

[Event "Early-Titled-Tuesday-Blitz-February-20-2024"]
[Site "Chess.com"]
[Date "2024.02.20"]
[Round "3"]
[White "erugee"]
[Black "pfalcon1949"]
[Result "1-0"]
[WhiteElo "2324"]
[BlackElo "1974"]
[TimeControl "180+1"]
[EndTime "8:28:49 PST"]
[Termination "erugee won on time"]

1. e4 {[%clk 0:03:00.9]} 1... e6 {[%clk 0:02:59.6]} 2. d3 {[%clk 0:02:59.4]}
2... d5 {[%clk 0:02:59.6]} 3. Nd2 {[%clk 0:03:00.2]} 3... c5 {[%clk 0:02:59.9]}
4. Ngf3 {[%clk 0:03:00.5]} 4... Nc6 {[%clk 0:03:00.1]} 5. g3 {[%clk 0:03:00.4]}
5... Bd6 {[%clk 0:03:00.7]} 6. Bg2 {[%clk 0:03:00.8]} 6... Nge7 {[%clk
0:03:01.2]} 7. O-O {[%clk 0:03:01.1]} 7... O-O {[%clk 0:03:01.8]} 8. Re1 {[%clk
0:03:01.4]} 8... f6 {[%clk 0:03:02.2]} 9. c3 {[%clk 0:03:00.4]} 9... d4 {[%clk
0:03:02.3]} 10. c4 {[%clk 0:02:59]} 10... e5 {[%clk 0:03:02.7]} 11. Nf1 {[%clk
0:02:58.7]} 11... a6 {[%clk 0:03:02.3]} 12. h4 {[%clk 0:02:57.3]} 12... b5
{[%clk 0:03:01.7]} 13. b3 {[%clk 0:02:55.6]} 13... Rb8 {[%clk 0:03:01.3]} 14.
cxb5 {[%clk 0:02:45.1]} 14... axb5 {[%clk 0:03:00]} 15. Bd2 {[%clk 0:02:45.7]}
15... c4 {[%clk 0:02:56.9]} 16. bxc4 {[%clk 0:02:41.9]} 16... bxc4 {[%clk
0:02:56.4]} 17. dxc4 {[%clk 0:02:41.6]} 17... Nb4 {[%clk 0:02:51.7]} 18. N1h2
{[%clk 0:02:27.3]} 18... Nd3 {[%clk 0:02:45]} 19. Rf1 {[%clk 0:02:15.6]} 19...
Ba6 {[%clk 0:02:37.6]} 20. Qc2 {[%clk 0:02:12.3]} 20... Nb2 {[%clk 0:02:15.1]}
21. Rfc1 {[%clk 0:01:59.5]} 21... Nxc4 {[%clk 0:02:12.7]} 22. Bh3 {[%clk
0:01:51.2]} 22... Nxd2 {[%clk 0:02:05.1]} 23. Qxd2 {[%clk 0:01:42.3]} 23... Bb4
{[%clk 0:01:57.7]} 24. Qd1 {[%clk 0:01:40.2]} 24... Qd6 {[%clk 0:01:48.3]} 25.
Ne1 {[%clk 0:01:28.1]} 25... Rfd8 {[%clk 0:01:41.1]} 26. Nd3 {[%clk 0:01:27.4]}
26... Bc3 {[%clk 0:01:35.2]} 27. Rab1 {[%clk 0:01:25.3]} 27... Rxb1 {[%clk
0:01:35.5]} 28. Rxb1 {[%clk 0:01:24.4]} 28... Qa3 {[%clk 0:01:31.8]} 29. Be6+
{[%clk 0:01:12.2]} 29... Kh8 {[%clk 0:01:31.2]} 30. Rb6 {[%clk 0:00:50.4]} 30...
Qa5 {[%clk 0:01:17.5]} 31. Rb3 {[%clk 0:00:26.8]} 31... Nc8 {[%clk 0:01:10.9]}
32. h5 {[%clk 0:00:21]} 32... Nd6 {[%clk 0:01:03.1]} 33. h6 {[%clk 0:00:20.5]}
33... g6 {[%clk 0:00:58.6]} 34. Qf3 {[%clk 0:00:18.6]} 34... Rf8 {[%clk
0:00:54.2]} 35. Ng4 {[%clk 0:00:17.5]} 35... Bxd3 {[%clk 0:00:45.4]} 36. Qxd3
{[%clk 0:00:16.9]} 36... Qxa2 {[%clk 0:00:23.5]} 37. Kg2 {[%clk 0:00:15.3]}
37... Qd2 {[%clk 0:00:19.9]} 38. Qa6 {[%clk 0:00:13.2]} 38... Qe1 {[%clk
0:00:13.8]} 39. Qxd6 {[%clk 0:00:10.6]} 39... Qxe4+ {[%clk 0:00:12.2]} 40. f3
{[%clk 0:00:10.6]} 40... Qe2+ {[%clk 0:00:09.1]} 41. Nf2 {[%clk 0:00:10.7]} 1-0

[Event "Early-Titled-Tuesday-Blitz-February-20-2024"]
[Site "Chess.com"]
[Date "2024.02.20"]
[Round "3"]
[White "Smile2005"]
[Black "only_strong_moves"]
[Result "0-1"]
[WhiteElo "2401"]
[BlackElo "2655"]
[TimeControl "180+1"]
[EndTime "8:28:52 PST"]
[Termination "only_strong_moves won by checkmate"]

1. e4 {[%clk 0:03:00.9]} 1... g6 {[%clk 0:02:59.2]} 2. d4 {[%clk 0:03:00.5]}
2... Bg7 {[%clk 0:02:59.3]} 3. Nf3 {[%clk 0:03:01.4]} 3... d6 {[%clk 0:02:58.8]}
4. Nc3 {[%clk 0:03:01]} 4... a6 {[%clk 0:02:59]} 5. Be2 {[%clk 0:03:00.9]} 5...
b5 {[%clk 0:02:59.3]} 6. a3 {[%clk 0:02:51.5]} 6... Nf6 {[%clk 0:02:56.3]} 7. e5
{[%clk 0:02:50]} 7... Nfd7 {[%clk 0:02:54.4]} 8. Bf4 {[%clk 0:02:45.2]} 8... O-O
{[%clk 0:02:51.7]} 9. O-O {[%clk 0:02:43.4]} 9... Bb7 {[%clk 0:02:49.9]} 10. Re1
{[%clk 0:02:41.9]} 10... dxe5 {[%clk 0:02:46.5]} 11. dxe5 {[%clk 0:02:38.1]}
11... Nc5 {[%clk 0:02:29.5]} 12. Nd4 {[%clk 0:02:06.5]} 12... Nc6 {[%clk
0:02:25.2]} 13. Nxc6 {[%clk 0:02:05.6]} 13... Bxc6 {[%clk 0:02:26.1]} 14. Bf3
{[%clk 0:02:03.7]} 14... Qxd1 {[%clk 0:02:21.3]} 15. Raxd1 {[%clk 0:02:03.2]}
15... Bxf3 {[%clk 0:02:20.9]} 16. gxf3 {[%clk 0:02:04.1]} 16... Rfd8 {[%clk
0:02:20.3]} 17. Be3 {[%clk 0:02:02]} 17... Ne6 {[%clk 0:02:19.1]} 18. f4 {[%clk
0:02:02.2]} 18... c6 {[%clk 0:02:02.6]} 19. Kg2 {[%clk 0:02:01.3]} 19... Bh6
{[%clk 0:01:54.3]} 20. Kf3 {[%clk 0:02:00.8]} 20... Kf8 {[%clk 0:01:42.6]} 21.
Ne4 {[%clk 0:01:54.4]} 21... Rd5 {[%clk 0:01:38]} 22. c4 {[%clk 0:01:49]} 22...
bxc4 {[%clk 0:01:37.1]} 23. Rc1 {[%clk 0:01:49]} 23... Nd4+ {[%clk 0:01:33.7]}
24. Kg2 {[%clk 0:01:48.8]} 24... Ne6 {[%clk 0:01:25.3]} 25. Kf3 {[%clk 0:01:36]}
25... Rd3 {[%clk 0:01:15.8]} 26. Rxc4 {[%clk 0:01:29.2]} 26... Bxf4 {[%clk
0:01:15.1]} 27. Ke2 {[%clk 0:01:12.3]} 27... Rd5 {[%clk 0:01:14.6]} 28. Rxc6
{[%clk 0:00:53.1]} 28... Rxe5 {[%clk 0:01:10.3]} 29. Kf3 {[%clk 0:00:50.8]}
29... Rf5 {[%clk 0:01:01.5]} 30. Bxf4 {[%clk 0:00:37.6]} 30... Nd4+ {[%clk
0:01:00.2]} 31. Ke3 {[%clk 0:00:34.7]} 31... Nxc6 {[%clk 0:01:01.1]} 32. Rc1
{[%clk 0:00:34.6]} 32... Rc8 {[%clk 0:00:54.3]} 33. Nc5 {[%clk 0:00:26.3]} 33...
Ke8 {[%clk 0:00:50.6]} 34. Na4 {[%clk 0:00:23.9]} 34... e5 {[%clk 0:00:46.7]}
35. Bg3 {[%clk 0:00:22.9]} 35... Rf3+ {[%clk 0:00:45.5]} 36. Ke4 {[%clk
0:00:16.7]} 36... f5+ {[%clk 0:00:43.1]} 37. Kd5 {[%clk 0:00:16.1]} 37... Ne7+
{[%clk 0:00:43]} 38. Ke6 {[%clk 0:00:16.2]} 38... Rxc1 {[%clk 0:00:43.9]} 39.
Bxe5 {[%clk 0:00:14.8]} 39... Rc6+ {[%clk 0:00:42.1]} 40. Bd6 {[%clk 0:00:14.6]}
40... Rxf2 {[%clk 0:00:42.8]} 41. Kf6 {[%clk 0:00:15.2]} 41... Rxd6+ {[%clk
0:00:42.6]} 42. Kg7 {[%clk 0:00:16.1]} 42... f4 {[%clk 0:00:40.9]} 43. Nc5
{[%clk 0:00:17]} 43... f3 {[%clk 0:00:40.9]} 44. Ne4 {[%clk 0:00:17.9]} 44...
Rfd2 {[%clk 0:00:41.1]} 45. Nxd6+ {[%clk 0:00:16.4]} 45... Rxd6 {[%clk 0:00:42]}
46. a4 {[%clk 0:00:16.5]} 46... f2 {[%clk 0:00:42.9]} 47. a5 {[%clk 0:00:17.2]}
47... f1=Q {[%clk 0:00:43.8]} 48. h4 {[%clk 0:00:17.9]} 48... Qf7+ {[%clk
0:00:44.7]} 49. Kh8 {[%clk 0:00:18.3]} 49... g5 {[%clk 0:00:45.6]} 50. h5 {[%clk
0:00:18.3]} 50... Rg6 {[%clk 0:00:46.3]} 51. hxg6 {[%clk 0:00:18.3]} 51... hxg6
{[%clk 0:00:45.5]} 52. b4 {[%clk 0:00:18.5]} 52... Nf5 {[%clk 0:00:46.4]} 53. b5
{[%clk 0:00:19.1]} 53... Nh6 {[%clk 0:00:45.6]} 54. b6 {[%clk 0:00:17.9]} 54...
Nf5 {[%clk 0:00:45.8]} 55. b7 {[%clk 0:00:18]} 55... Qg7# {[%clk 0:00:46.4]} 0-1

[Event "Early-Titled-Tuesday-Blitz-February-20-2024"]
[Site "Chess.com"]
[Date "2024.02.20"]
[Round "3"]
[White "Akylbek2021"]
[Black "Kotlyar_K"]
[Result "0-1"]
[WhiteElo "2274"]
[BlackElo "2598"]
[TimeControl "180+1"]
[EndTime "8:28:52 PST"]
[Termination "Kotlyar_K won by checkmate"]

1. e4 {[%clk 0:03:00.9]} 1... e5 {[%clk 0:03:00.4]} 2. Nf3 {[%clk 0:03:00.7]}
2... Nc6 {[%clk 0:03:01]} 3. Bb5 {[%clk 0:03:01.1]} 3... a6 {[%clk 0:03:01.4]}
4. Ba4 {[%clk 0:03:01.8]} 4... Nf6 {[%clk 0:03:01.9]} 5. Bxc6 {[%clk 0:03:02.6]}
5... dxc6 {[%clk 0:03:00]} 6. d3 {[%clk 0:03:03.2]} 6... Bd6 {[%clk 0:02:53.2]}
7. Nbd2 {[%clk 0:03:03.8]} 7... Qe7 {[%clk 0:02:44.5]} 8. Nc4 {[%clk 0:03:02.6]}
8... b5 {[%clk 0:02:35.9]} 9. Ne3 {[%clk 0:03:02.3]} 9... h6 {[%clk 0:02:22.5]}
10. Nh4 {[%clk 0:02:59.5]} 10... g6 {[%clk 0:02:21.1]} 11. a4 {[%clk 0:02:56.6]}
11... Bd7 {[%clk 0:02:04.3]} 12. Bd2 {[%clk 0:02:40]} 12... Nxe4 {[%clk
0:01:59.1]} 13. Nxg6 {[%clk 0:02:34.9]} 13... Nxf2 {[%clk 0:01:47.1]} 14. Qh5
{[%clk 0:01:28.7]} 14... Nxd3+ {[%clk 0:01:47.1]} 15. cxd3 {[%clk 0:01:27.5]}
15... fxg6 {[%clk 0:01:47.3]} 16. Qxg6+ {[%clk 0:01:28.2]} 16... Qf7 {[%clk
0:01:47.9]} 17. Qe4 {[%clk 0:01:24.5]} 17... Rb8 {[%clk 0:01:16.6]} 18. Bc3
{[%clk 0:01:21.6]} 18... Qe6 {[%clk 0:01:05.8]} 19. O-O {[%clk 0:01:19.7]} 19...
b4 {[%clk 0:00:53]} 20. Nf5 {[%clk 0:01:08.1]} 20... Qd5 {[%clk 0:00:38.8]} 21.
Ng7+ {[%clk 0:00:56]} 21... Kd8 {[%clk 0:00:39]} 22. Qh4+ {[%clk 0:00:39]} 22...
Kc8 {[%clk 0:00:38.4]} 23. Bd2 {[%clk 0:00:38.3]} 23... Qxd3 {[%clk 0:00:31.2]}
24. Bxh6 {[%clk 0:00:35.6]} 24... Kb7 {[%clk 0:00:21.6]} 25. Rad1 {[%clk
0:00:33]} 25... Qh7 {[%clk 0:00:21.4]} 26. Rf7 {[%clk 0:00:22.3]} 26... Qxh6
{[%clk 0:00:19.8]} 27. Qxh6 {[%clk 0:00:20.8]} 27... Rxh6 {[%clk 0:00:20.4]} 28.
Rxd7 {[%clk 0:00:21]} 28... Kc8 {[%clk 0:00:16.6]} 29. Rf7 {[%clk 0:00:18.7]}
29... b3 {[%clk 0:00:14.4]} 30. Nf5 {[%clk 0:00:18.2]} 30... Rg6 {[%clk
0:00:10.7]} 31. h4 {[%clk 0:00:17.4]} 31... Rb4 {[%clk 0:00:10]} 32. h5 {[%clk
0:00:17.2]} 32... Rg8 {[%clk 0:00:08.5]} 33. a5 {[%clk 0:00:12.7]} 33... Rbg4
{[%clk 0:00:08.1]} 34. h6 {[%clk 0:00:12.5]} 34... Rxg2+ {[%clk 0:00:06.9]} 35.
Kh1 {[%clk 0:00:11.8]} 35... e4 {[%clk 0:00:06.5]} 36. h7 {[%clk 0:00:06]} 36...
Rh2# {[%clk 0:00:06.1]} 0-1

[Event "Early-Titled-Tuesday-Blitz-February-20-2024"]
[Site "Chess.com"]
[Date "2024.02.20"]
[Round "3"]
[White "Witik"]
[Black "lachesisQ"]
[Result "1/2-1/2"]
[WhiteElo "2772"]
[BlackElo "3045"]
[TimeControl "180+1"]
[EndTime "8:28:53 PST"]
[Termination "Game drawn by repetition"]

1. d4 {[%clk 0:02:59.6]} 1... Nf6 {[%clk 0:02:59.5]} 2. Bf4 {[%clk 0:02:59.5]}
2... g6 {[%clk 0:02:59.8]} 3. Nf3 {[%clk 0:02:59.3]} 3... Bg7 {[%clk 0:03:00.2]}
4. e3 {[%clk 0:02:59.2]} 4... O-O {[%clk 0:03:00.9]} 5. Nbd2 {[%clk 0:02:50.9]}
5... d6 {[%clk 0:03:01.2]} 6. h3 {[%clk 0:02:50.3]} 6... b6 {[%clk 0:03:01.4]}
7. a4 {[%clk 0:02:49.8]} 7... a5 {[%clk 0:03:00.7]} 8. Be2 {[%clk 0:02:47.5]}
8... Bb7 {[%clk 0:03:01.1]} 9. O-O {[%clk 0:02:47.5]} 9... Nbd7 {[%clk
0:03:01.5]} 10. Bh2 {[%clk 0:02:47.6]} 10... Re8 {[%clk 0:03:01.4]} 11. c3
{[%clk 0:02:40.3]} 11... e5 {[%clk 0:02:57.8]} 12. Nc4 {[%clk 0:02:40.6]} 12...
exd4 {[%clk 0:02:54.4]} 13. cxd4 {[%clk 0:02:35.2]} 13... Nd5 {[%clk 0:02:53.8]}
14. Rc1 {[%clk 0:02:31.1]} 14... Nb4 {[%clk 0:02:52.1]} 15. Na3 {[%clk
0:02:09.5]} 15... Nf6 {[%clk 0:02:51.2]} 16. Nb5 {[%clk 0:02:06.2]} 16... Re7
{[%clk 0:02:51.4]} 17. Nd2 {[%clk 0:02:02]} 17... Nfd5 {[%clk 0:02:48.3]} 18.
Bf3 {[%clk 0:01:56.7]} 18... Rb8 {[%clk 0:02:44.6]} 19. Qb3 {[%clk 0:01:48.3]}
19... Rd7 {[%clk 0:02:40.4]} 20. Ne4 {[%clk 0:01:38.8]} 20... Ne7 {[%clk
0:02:22.8]} 21. Rxc7 {[%clk 0:00:54.6]} 21... Rxc7 {[%clk 0:02:22.1]} 22. Nexd6
{[%clk 0:00:42.2]} 22... Bd5 {[%clk 0:02:06]} 23. Bxd5 {[%clk 0:00:34.4]} 23...
Nexd5 {[%clk 0:02:02.3]} 24. Nxc7 {[%clk 0:00:22.2]} 24... Qxc7 {[%clk
0:01:59.6]} 25. Nxf7 {[%clk 0:00:15.5]} 25... Qxf7 {[%clk 0:01:20.2]} 26. Bxb8
{[%clk 0:00:15.5]} 26... Bf8 {[%clk 0:01:17.4]} 27. Rc1 {[%clk 0:00:15.5]} 27...
h5 {[%clk 0:01:09.3]} 28. Be5 {[%clk 0:00:14.8]} 28... Ne7 {[%clk 0:00:50.4]}
29. Qxf7+ {[%clk 0:00:10.8]} 29... Kxf7 {[%clk 0:00:51.3]} 30. Rc7 {[%clk
0:00:10.6]} 30... Nd3 {[%clk 0:00:51.4]} 31. Rb7 {[%clk 0:00:05.2]} 31... Nxb2
{[%clk 0:00:49.1]} 32. Rxb6 {[%clk 0:00:05.5]} 32... Nxa4 {[%clk 0:00:49.1]} 33.
Ra6 {[%clk 0:00:04.9]} 33... Nb2 {[%clk 0:00:43]} 34. Rxa5 {[%clk 0:00:05]}
34... Nc4 {[%clk 0:00:43.1]} 35. Rb5 {[%clk 0:00:05.5]} 35... Nf5 {[%clk
0:00:39.6]} 36. Bc7 {[%clk 0:00:05.3]} 36... Ke6 {[%clk 0:00:36.9]} 37. Rb7
{[%clk 0:00:05.7]} 37... Be7 {[%clk 0:00:35]} 38. Bf4 {[%clk 0:00:05.6]} 38...
g5 {[%clk 0:00:31.9]} 39. Bb8 {[%clk 0:00:05.9]} 39... g4 {[%clk 0:00:31.6]} 40.
hxg4 {[%clk 0:00:06.2]} 40... hxg4 {[%clk 0:00:32.5]} 41. g3 {[%clk 0:00:05.8]}
41... Nd2 {[%clk 0:00:30.4]} 42. Rb6+ {[%clk 0:00:05.7]} 42... Kf7 {[%clk
0:00:24.1]} 43. Kg2 {[%clk 0:00:05.6]} 43... Nf3 {[%clk 0:00:24]} 44. Bf4 {[%clk
0:00:05]} 44... Ne1+ {[%clk 0:00:24.1]} 45. Kf1 {[%clk 0:00:05.1]} 45... Nf3
{[%clk 0:00:24.8]} 46. Kg2 {[%clk 0:00:05.3]} 46... Ne1+ {[%clk 0:00:23.7]} 47.
Kf1 {[%clk 0:00:05.5]} 47... Nf3 {[%clk 0:00:24.6]} 48. Kg2 {[%clk 0:00:05.9]}
1/2-1/2

[Event "Early-Titled-Tuesday-Blitz-February-20-2024"]
[Site "Chess.com"]
[Date "2024.02.20"]
[Round "3"]
[White "wanyaland"]
[Black "Jumbo"]
[Result "0-1"]
[WhiteElo "2494"]
[BlackElo "2818"]
[TimeControl "180+1"]
[EndTime "8:28:53 PST"]
[Termination "Jumbo won by checkmate"]

1. d4 {[%clk 0:02:47.5]} 1... Nf6 {[%clk 0:02:59.6]} 2. c4 {[%clk 0:02:45.6]}
2... g6 {[%clk 0:03:00.1]} 3. Nf3 {[%clk 0:02:36.9]} 3... Bg7 {[%clk 0:03:00]}
4. g3 {[%clk 0:02:32.8]} 4... c5 {[%clk 0:02:56.3]} 5. Bg2 {[%clk 0:02:33.7]}
5... Qa5+ {[%clk 0:02:55.8]} 6. Nc3 {[%clk 0:02:31.6]} 6... Ne4 {[%clk
0:02:52.6]} 7. O-O {[%clk 0:02:28.6]} 7... Nxc3 {[%clk 0:02:52]} 8. Qd2 {[%clk
0:02:26.8]} 8... Nxe2+ {[%clk 0:02:50]} 9. Qxe2 {[%clk 0:02:26.1]} 9... cxd4
{[%clk 0:02:49.5]} 10. Re1 {[%clk 0:02:17.7]} 10... Nc6 {[%clk 0:01:51.5]} 11.
Bd2 {[%clk 0:01:57.9]} 11... Qd8 {[%clk 0:01:44.3]} 12. b4 {[%clk 0:01:53.2]}
12... d6 {[%clk 0:01:13.2]} 13. b5 {[%clk 0:01:51.5]} 13... d3 {[%clk
0:01:00.9]} 14. Qxd3 {[%clk 0:01:49.1]} 14... Bxa1 {[%clk 0:01:00.7]} 15. Rxa1
{[%clk 0:01:34]} 15... Ne5 {[%clk 0:00:58.4]} 16. Nxe5 {[%clk 0:01:30.2]} 16...
dxe5 {[%clk 0:00:59.3]} 17. Qe3 {[%clk 0:01:30.3]} 17... f6 {[%clk 0:00:53.2]}
18. Bd5 {[%clk 0:01:21]} 18... Qd6 {[%clk 0:00:39.3]} 19. Rd1 {[%clk 0:01:15.9]}
19... Bg4 {[%clk 0:00:24.7]} 20. f3 {[%clk 0:01:15.5]} 20... Bf5 {[%clk
0:00:20.6]} 21. a3 {[%clk 0:01:14.4]} 21... Rd8 {[%clk 0:00:19.9]} 22. Bxb7
{[%clk 0:01:03.4]} 22... O-O {[%clk 0:00:17.2]} 23. Kf2 {[%clk 0:00:58.7]} 23...
Be6 {[%clk 0:00:16.4]} 24. c5 {[%clk 0:00:55.7]} 24... Qc7 {[%clk 0:00:16.9]}
25. c6 {[%clk 0:00:54.6]} 25... Bc4 {[%clk 0:00:16.8]} 26. a4 {[%clk 0:00:52.8]}
26... Rd3 {[%clk 0:00:17.2]} 27. Qc5 {[%clk 0:00:49.9]} 27... Bd5 {[%clk
0:00:17.5]} 28. Ke2 {[%clk 0:00:38.8]} 28... Rd8 {[%clk 0:00:10.7]} 29. Kxd3
{[%clk 0:00:34.1]} 29... Bxf3+ {[%clk 0:00:11.1]} 30. Kc2 {[%clk 0:00:33.7]}
30... Bxd1+ {[%clk 0:00:11.1]} 31. Kxd1 {[%clk 0:00:32.1]} 31... Rd4 {[%clk
0:00:11.6]} 32. Ke2 {[%clk 0:00:31]} 32... Kg7 {[%clk 0:00:07.1]} 33. Be3 {[%clk
0:00:29.9]} 33... Rxa4 {[%clk 0:00:07.4]} 34. Qd5 {[%clk 0:00:26.6]} 34... Qa5
{[%clk 0:00:04.9]} 35. Qd7 {[%clk 0:00:21.5]} 35... Ra2+ {[%clk 0:00:04.9]} 36.
Bd2 {[%clk 0:00:21.2]} 36... Qxb5+ {[%clk 0:00:04]} 37. Kf2 {[%clk 0:00:20.3]}
37... Qc5+ {[%clk 0:00:04.3]} 38. Kg2 {[%clk 0:00:18.5]} 38... e4 {[%clk
0:00:04.1]} 39. Kh3 {[%clk 0:00:15.6]} 39... e3 {[%clk 0:00:04.2]} 40. Bc3
{[%clk 0:00:12.8]} 40... Qh5# {[%clk 0:00:04.7]} 0-1

[Event "Early-Titled-Tuesday-Blitz-February-20-2024"]
[Site "Chess.com"]
[Date "2024.02.20"]
[Round "3"]
[White "Shivananda1964"]
[Black "GMT4114"]
[Result "1-0"]
[WhiteElo "2331"]
[BlackElo "2023"]
[TimeControl "180+1"]
[EndTime "8:28:53 PST"]
[Termination "Shivananda1964 won on time"]

1. e4 {[%clk 0:02:59.5]} 1... e6 {[%clk 0:03:00.3]} 2. d4 {[%clk 0:02:59.1]}
2... d5 {[%clk 0:03:01]} 3. Nd2 {[%clk 0:02:59.6]} 3... h6 {[%clk 0:03:00.9]} 4.
Bd3 {[%clk 0:02:55.9]} 4... c5 {[%clk 0:03:00.4]} 5. dxc5 {[%clk 0:02:54]} 5...
Bxc5 {[%clk 0:02:59.2]} 6. Ngf3 {[%clk 0:02:54.2]} 6... Nf6 {[%clk 0:02:45.2]}
7. Qe2 {[%clk 0:02:54.3]} 7... O-O {[%clk 0:02:36.4]} 8. O-O {[%clk 0:02:51.6]}
8... Nc6 {[%clk 0:02:34.8]} 9. c3 {[%clk 0:02:51.5]} 9... a6 {[%clk 0:02:22.7]}
10. e5 {[%clk 0:02:50.3]} 10... Nd7 {[%clk 0:02:17.8]} 11. Nb3 {[%clk 0:02:47]}
11... Ba7 {[%clk 0:02:15.9]} 12. Bc2 {[%clk 0:02:46.3]} 12... Re8 {[%clk
0:02:13.9]} 13. Bf4 {[%clk 0:02:41.6]} 13... b5 {[%clk 0:02:12.5]} 14. Qd3
{[%clk 0:02:39.4]} 14... Nf8 {[%clk 0:02:11.4]} 15. Rfe1 {[%clk 0:02:37.5]}
15... Bb7 {[%clk 0:02:11.5]} 16. Rad1 {[%clk 0:02:29.9]} 16... Qe7 {[%clk
0:02:11.4]} 17. h4 {[%clk 0:02:25.6]} 17... Rac8 {[%clk 0:02:10.7]} 18. g4
{[%clk 0:02:22.3]} 18... Red8 {[%clk 0:02:06]} 19. h5 {[%clk 0:02:06.6]} 19...
b4 {[%clk 0:02:06.1]} 20. g5 {[%clk 0:02:02.6]} 20... d4 {[%clk 0:01:23.3]} 21.
c4 {[%clk 0:01:57.9]} 21... hxg5 {[%clk 0:00:49.4]} 22. Bxg5 {[%clk 0:01:52.7]}
22... f6 {[%clk 0:00:49.7]} 23. Bh4 {[%clk 0:01:47.4]} 23... a5 {[%clk 0:00:36]}
24. Nbd2 {[%clk 0:01:42.8]} 24... Qf7 {[%clk 0:00:20.6]} 25. Ne4 {[%clk
0:01:13.9]} 25... f5 {[%clk 0:00:11.6]} 26. Ng3 {[%clk 0:00:56]} 26... Rd7
{[%clk 0:00:10.5]} 27. Ng5 {[%clk 0:00:52]} 27... Qe8 {[%clk 0:00:08.6]} 28. b3
{[%clk 0:00:49.9]} 28... Bb8 {[%clk 0:00:08.5]} 29. f4 {[%clk 0:00:48.2]} 29...
Nd8 {[%clk 0:00:06.9]} 30. Kh2 {[%clk 0:00:41.1]} 30... Nf7 {[%clk 0:00:05.8]}
31. Rg1 {[%clk 0:00:08.3]} 31... Re7 {[%clk 0:00:04.8]} 32. Nxf7 {[%clk
0:00:06.5]} 32... Rxf7 {[%clk 0:00:05.2]} 33. h6 {[%clk 0:00:06.5]} 33... Qc6
{[%clk 0:00:02.4]} 34. Nh5 {[%clk 0:00:05.7]} 34... g6 {[%clk 0:00:01.1]} 35.
Qg3 {[%clk 0:00:05.3]} 35... Kh8 {[%clk 0:00:01.3]} 36. Bf6+ {[%clk 0:00:04.7]}
1-0